[Event "KAZ Cup Women 2019"]
[Site "Almaty"]
[Date "2019.12.17"]
[Round "7.1"]
[White "Balabayeva, Xeniya"]
[Black "Dauletova, Gulmira"]
[Result "1/2-1/2"]
[ECO "C41"]
[WhiteElo "2119"]
[BlackElo "2250"]
[Annotator "ChessBase"]
[PlyCount "262"]
[EventDate "2019.12.12"]
[EventType "tourn"]
[EventCountry "KAZ"]
[SourceTitle "playchess.com"]
[Source "ChessBase"]
[SourceQuality "1"]
[TimeControl "40/5400+30:1800+30"]

1. e4 {[%emt 0:00:00]} e5 {[%emt 0:03:29]} 2. Nf3 {[%emt 0:00:00]} d6 {[%emt 0:00:07]} 3. d4 {[%emt 0:00:13]} exd4 {[%emt 0:00:09]} 4. Nxd4 {[%emt 0:00:06]} Nf6 {[%emt 0:00:07]} 5. Nc3 {[%emt 0:00:43]} Be7 {[%emt 0:00:08]} 6. Be2 {[%emt 0:02:44]} O-O {[%emt 0:00:10]} 7. Be3 {[%emt 0:01:00]} Re8 {[%emt 0:00:39]} 8. Bf3 {[%emt 0:10:19]} Bf8 {[%emt 0:01:20]} 9. Qe2 {[%emt 0:01:49]} Nbd7 {[%emt 0:04:40]} 10. O-O-O {[%emt 0:05:20]} Nc5 {[%emt 0:10:40]} 11. Nc6 {[%emt 0:06:02]} bxc6 {[%emt 0:00:21]} 12. Bxc5 {[%emt 0:00:04]} Nd7 {[%emt 0:05:20]} 13. Be3 {[%emt 0:03:10]} Ne5 {[%emt 0:03:29]} 14. Qf1 {[%emt 0:09:37]} Bb7 {[%emt 0:25:41]} 15. Be2 {[%emt 0:04:38]} Qc8 {[%emt 0:00:14]} 16. h3 {[%emt 0:04:19]} a5 {[%emt 0:01:55]} 17. f4 {[%emt 0:02:57]} Nd7 {[%emt 0:00:03]} 18. Bg4 {[%emt 0:06:24]} c5 {[%emt 0:05:58]} 19. Bxc5 {[%emt 0:09:27]} Bxe4 {[%emt 0:10:44]} 20. Nxe4 {[%emt 0:04:27]} Rxe4 {[%emt 0:00:03]} 21. Qf3 {[%emt 0:00:54]} Re7 {[%emt 0:02:55]} 22. Bd4 {[%emt 0:01:35]} c6 {[%emt 0:07:55]} 23. h4 {[%emt 0:02:49]} Qb7 {[%emt 0:01:11]} 24. h5 {[%emt 0:03:35]} h6 {[%emt 0:01:15]} 25. Bf5 {[%emt 0:04:22]} Nb6 {[%emt 0:03:59]} 26. g4 {[%emt 0:02:52]} c5 {[%emt 0:00:17]} 27. Qxb7 {[%emt 0:00:57]} Rxb7 {[%emt 0:00:01]} 28. Bc3 {[%emt 0:00:08]} d5 {[%emt 0:00:15]} 29. g5 {[%emt 0:02:31]} Bd6 {[%emt 0:00:30]} 30. Rdf1 {[%emt 0:01:45]} Na4 {[%emt 0:02:44]} 31. gxh6 {[%emt 0:01:31]} Nxc3 {[%emt 0:00:02]} 32. h7+ {[%emt 0:00:09]} Kh8 {[%emt 0:00:01]} 33. bxc3 {[%emt 0:00:05]} Re8 {[%emt 0:01:56]} 34. Rh2 {[%emt 0:02:07]} c4 {[%emt 0:00:41]} 35. Kd2 {[%emt 0:00:59]} Rbe7 {[%emt 0:00:10]} 36. Rff2 {[%emt 0:05:08]} Bc5 {[%emt 0:00:37]} 37. Re2 {[%emt 0:00:36]} Be3+ {[%emt 0:00:41]} 38. Ke1 {[%emt 0:00:06]} Rb8 {[%emt 0:01:31]} 39. Kf1 {[%emt 0:00:55]} Rb1+ {[%emt 0:02:11]} 40. Re1 {[%emt 0:01:32]} Rxe1+ {[%emt 0:01:16]} 41. Kxe1 {[%emt 0:30:05]} Bxf4+ {[%emt 0:31:13]} 42. Re2 {[%emt 0:00:05]} Be3 {[%emt 0:00:31]} 43. Bg4 {[%emt 0:00:00]} Kxh7 {[%emt 0:00:00]} 44. Bf3 {[%emt 0:00:00]} Re5 {[%emt 0:00:00]} 45. Kf1 {[%emt 0:00:00]} g5 {[%emt 0:00:00]} 46. hxg6+ {[%emt 0:00:00]} Kxg6 {[%emt 0:00:00]} 47. Re1 {[%emt 0:00:00]} Kf5 {[%emt 0:00:00]} 48. Rd1 {[%emt 0:00:00]} Ke6 {[%emt 0:00:00]} 49. Rb1 {[%emt 0:00:00]} Bd2 {[%emt 0:04:09]} 50. Rb6+ {[%emt 0:00:00]} Kd7 {[%emt 0:00:01]} 51. Rb5 {[%emt 0:00:00]} Kc6 {[%emt 0:00:01]} 52. Rxa5 {[%emt 0:00:00]} Bxc3 {[%emt 0:00:02]} 53. Ra6+ {[%emt 0:00:00]} Kc5 {[%emt 0:00:34]} 54. Be2 {[%emt 0:00:00]} Rf5+ {[%emt 0:00:41]} 55. Kg2 {[%emt 0:00:12]} Kd4 {[%emt 0:00:11]} 56. Ra3 {[%emt 0:03:29]} Rf6 {[%emt 0:00:23]} 57. Bf3 {[%emt 0:00:53]} Bb4 {[%emt 0:01:27]} 58. Ra7 {[%emt 0:00:59]} Rf5 {[%emt 0:00:24]} 59. Rd7 {[%emt 0:00:29]} f6 {[%emt 0:00:23]} 60. a4 {[%emt 0:00:53]} Be1 {[%emt 0:01:21]} 61. Rd8 {[%emt 0:01:16]} Bd2 {[%emt 0:00:30]} 62. Rd7 {[%emt 0:01:18]} Kc5 {[%emt 0:00:35]} 63. Rb7 {[%emt 0:01:54]} Kc6 {[%emt 0:00:40]} 64. Rb8 {[%emt 0:00:51]} Bc3 {[%emt 0:00:41]} 65. Rd8 {[%emt 0:00:49]} Kc5 {[%emt 0:00:43]} 66. Ra8 {[%emt 0:01:00]} Re5 {[%emt 0:01:25]} 67. a5 {[%emt 0:00:37]} Re1 {[%emt 0:00:49]} 68. a6 {[%emt 0:00:31]} d4 {[%emt 0:00:46]} 69. Rc8+ {[%emt 0:00:30]} Kb6 {[%emt 0:00:08]} 70. Rxc4 {[%emt 0:00:16]} Kxa6 {[%emt 0:00:13]} 71. Rc6+ {[%emt 0:00:05]} Kb5 {[%emt 0:00:10]} 72. Rxf6 {[%emt 0:00:07]} Bd2 {[%emt 0:01:34]} 73. Kf2 {[%emt 0:00:52]} Re3 {[%emt 0:00:45]} 74. Be2+ {[%emt 0:00:21]} Kb4 {[%emt 0:00:05]} 75. Rc6 {[%emt 0:00:41]} Bc3 {[%emt 0:00:23]} 76. Bd3 {[%emt 0:00:15]} Re7 {[%emt 0:00:46]} 77. Rb6+ {[%emt 0:00:15]} Kc5 {[%emt 0:00:35]} 78. Rb5+ {[%emt 0:00:05]} Kc6 {[%emt 0:00:12]} 79. Rh5 {[%emt 0:00:05]} Kd6 {[%emt 0:00:34]} 80. Rf5 {[%emt 0:00:52]} Be1+ {[%emt 0:00:25]} 81. Kf1 {[%emt 0:00:17]} Bg3 {[%emt 0:00:24]} 82. Kg2 {[%emt 0:00:15]} Be5 {[%emt 0:00:04]} 83. Rh5 {[%emt 0:00:24]} Rf7 {[%emt 0:01:08]} 84. Rf5 {[%emt 0:00:05]} Rg7+ {[%emt 0:00:22]} 85. Kf2 {[%emt 0:00:09]} Re7 {[%emt 0:00:29]} 86. Rh5 {[%emt 0:00:09]} Kc5 {[%emt 0:00:08]} 87. Rh7 {[%emt 0:00:40]} Re8 {[%emt 0:00:13]} 88. Rb7 {[%emt 0:00:24]} Rf8+ {[%emt 0:00:28]} 89. Kg2 {[%emt 0:00:15]} Bf4 {[%emt 0:00:28]} 90. Rb5+ {[%emt 0:00:08]} Kd6 {[%emt 0:00:07]} 91. Rf5 {[%emt 0:00:05]} Rg8+ {[%emt 0:00:09]} 92. Kf3 {[%emt 0:00:05]} Be5 {[%emt 0:00:04]} 93. Rh5 {[%emt 0:00:09]} Rg3+ {[%emt 0:00:06]} 94. Kf2 {[%emt 0:00:05]} Re3 {[%emt 0:00:06]} 95. Rf5 {[%emt 0:00:07]} Rh3 {[%emt 0:01:08]} 96. Kg2 {[%emt 0:00:07]} Rh2+ {[%emt 0:00:13]} 97. Kg1 {[%emt 0:00:27]} Rh4 {[%emt 0:01:13]} 98. Kg2 {[%emt 0:00:28]} Ke6 {[%emt 0:00:29]} 99. Rg5 {[%emt 0:00:15]} Bf6 {[%emt 0:01:45]} 100. Rb5 {[%emt 0:00:21]} Be5 {[%emt 0:00:14]} 101. Rb6+ {[%emt 0:00:05]} Bd6 {[%emt 0:00:23]} 102. Rb5 {[%emt 0:00:06]} Rh2+ {[%emt 0:01:20]} 103. Kf3 {[%emt 0:00:17]} Rh3+ {[%emt 0:00:13]} 104. Ke4 {[%emt 0:00:52]} Rh4+ {[%emt 0:00:03]} 105. Kf3 {[%emt 0:00:04]} Rf4+ {[%emt 0:00:07]} 106. Kg2 {[%emt 0:00:04]} Be5 {[%emt 0:00:16]} 107. Rb6+ {[%emt 0:00:08]} Bd6 {[%emt 0:00:15]} 108. Rb5 {[%emt 0:00:05]} Rh4 {[%emt 0:00:23]} 109. Bc4+ {[%emt 0:00:21]} Kf6 {[%emt 0:00:23]} 110. Bd3 {[%emt 0:00:04]} Be5 {[%emt 0:00:12]} 111. Kf3 {[%emt 0:00:22]} Rf4+ {[%emt 0:01:11]} 112. Kg2 Rg4+ {[%emt 0:00:58]} 113. Kf3 {[%emt 0:00:18]} Rh4 {[%emt 0:00:05]} 114. Kg2 {[%emt 0:00:38]} Ke6 {[%emt 0:00:26]} 115. Rb6+ {[%emt 0:00:05]} Kd5 {[%emt 0:00:38]} 116. Rb5+ {[%emt 0:00:05]} Ke6 {[%emt 0:00:24]} 117. Rb6+ {[%emt 0:00:03]} Ke7 {[%emt 0:00:05]} 118. Kf3 {[%emt 0:00:17]} Bd6 {[%emt 0:00:34]} 119. Ra6 {[%emt 0:00:29]} Rf4+ {[%emt 0:00:08]} 120. Kg2 {[%emt 0:00:06]} Ke6 {[%emt 0:01:31]} 121. Ra5 {[%emt 0:00:35]} Rf8 {[%emt 0:00:47]} 122. Rb5 {[%emt 0:00:12]} Be5 {[%emt 0:00:19]} 123. Rb6+ {[%emt 0:00:05]} Ke7 {[%emt 0:00:41]} 124. Ra6 {[%emt 0:00:10]} Bd6 {[%emt 0:01:11]} 125. Rb6 {[%emt 0:00:15]} Rf6 {[%emt 0:00:33]} 126. Rb7+ {[%emt 0:00:15]} Ke6 {[%emt 0:00:13]} 127. Rb5 {[%emt 0:00:07]} Rh6 {[%emt 0:01:02]} 128. Ra5 {[%emt 0:00:25]} Rh8 {[%emt 0:00:29]} 129. Rb5 {[%emt 0:00:09]} Be5 {[%emt 0:00:37]} 130. Rb6+ {[%emt 0:00:07]} Ke7 {[%emt 0:00:27]} 131. Ra6 {[%emt 0:00:11]} Kf7 {[%emt 0:00:28]} 1/2-1/2

[Event "KAZ Cup Women 2019"]
[Site "Almaty"]
[Date "2019.12.17"]
[Round "7.4"]
[White "Gevorgyan, Maria"]
[Black "Tomilova, Elena"]
[Result "0-1"]
[ECO "C11"]
[WhiteElo "2255"]
[BlackElo "2341"]
[Annotator "ChessBase"]
[PlyCount "116"]
[EventDate "2019.12.12"]
[EventType "tourn"]
[EventCountry "KAZ"]
[SourceTitle "playchess.com"]
[Source "ChessBase"]
[SourceQuality "1"]
[TimeControl "40/5400+30:1800+30"]

1. e4 {[%emt 0:00:21]} e6 {[%emt 0:00:00]} 2. d4 {[%emt 0:00:18]} d5 {[%emt 0:00:00]} 3. Nc3 {[%emt 0:00:29]} Nf6 {[%emt 0:00:00]} 4. e5 {[%emt 0:00:04]} Nfd7 {[%emt 0:00:00]} 5. f4 {[%emt 0:00:04]} c5 {[%emt 0:00:03]} 6. Nf3 {[%emt 0:00:05]} Nc6 {[%emt 0:00:04]} 7. Be3 {[%emt 0:00:03]} cxd4 {[%emt 0:00:22]} 8. Nxd4 {[%emt 0:00:05]} Bc5 {[%emt 0:00:04]} 9. Qd2 {[%emt 0:00:02]} O-O {[%emt 0:00:44]} 10. Be2 {[%emt 0:01:13]} a6 {[%emt 0:04:20]} 11. O-O-O {[%emt 0:06:59]} Bxd4 {[%emt 0:00:23]} 12. Bxd4 {[%emt 0:00:05]} b5 {[%emt 0:00:10]} 13. Bf3 {[%emt 0:05:31]} b4 {[%emt 0:01:22]} 14. Nxd5 {[%emt 0:06:50]} exd5 {[%emt 0:05:34]} 15. Bxd5 {[%emt 0:00:05]} Qc7 {[%emt 0:08:36]} 16. f5 {[%emt 0:15:16]} Nxd4 {[%emt 0:12:25]} 17. Qxd4 {[%emt 0:09:47]} Rb8 {[%emt 0:02:01]} 18. e6 {[%emt 0:05:51]} Nf6 {[%emt 0:01:09]} 19. exf7+ {[%emt 0:00:19]} Kh8 {[%emt 0:00:16]} 20. Be6 {[%emt 0:03:56]} a5 {[%emt 0:10:18]} 21. g4 {[%emt 0:03:47]} Bb7 {[%emt 0:06:20]} 22. Rhg1 {[%emt 0:05:09]} Bf3 {[%emt 0:14:08]} 23. Rd2 {[%emt 0:02:45]} Rbd8 {[%emt 0:02:11]} 24. Qe3 {[%emt 0:00:40]} Rxd2 {[%emt 0:01:34]} 25. Qxd2 {[%emt 0:00:05]} Qc5 {[%emt 0:08:10]} 26. Qe1 {[%emt 0:05:12]} Be4 {[%emt 0:07:56]} 27. Bb3 {[%emt 0:04:27]} Rxf7 {[%emt 0:01:46]} 28. g5 {[%emt 0:09:32]} Nd5 {[%emt 0:00:34]} 29. g6 {[%emt 0:02:29]} Re7 {[%emt 0:00:44]} 30. Qg3 {[%emt 0:01:12]} Qe3+ {[%emt 0:01:31]} 31. Qxe3 {[%emt 0:00:02]} Nxe3 {[%emt 0:00:03]} 32. f6 {[%emt 0:00:17]} gxf6 {[%emt 0:01:31]} 33. g7+ {[%emt 0:00:19]} Rxg7 {[%emt 0:00:04]} 34. Re1 {[%emt 0:00:02]} a4 {[%emt 0:00:59]} 35. Bxa4 {[%emt 0:01:40]} Nc4 {[%emt 0:00:56]} 36. Bb3 {[%emt 0:06:03]} Nd6 {[%emt 0:00:41]} 37. Rd1 {[%emt 0:00:58]} Bf3 {[%emt 0:03:53]} 38. Rf1 {[%emt 0:00:31]} Ne4 {[%emt 0:00:06]} 39. Bc4 {[%emt 0:01:20]} Bg2 {[%emt 0:00:30]} 40. Rd1 {[%emt 0:00:57]} Rg6 {[%emt 0:02:20]} 41. Bf7 {[%emt 0:30:05]} Rg5 {[%emt 0:30:52]} 42. h4 {[%emt 0:00:15]} Rg3 {[%emt 0:00:23]} 43. a4 {[%emt 0:04:13]} bxa3 {[%emt 0:01:06]} 44. bxa3 {[%emt 0:00:09]} Rxa3 {[%emt 0:00:00]} 45. Rd7 {[%emt 0:00:00]} f5 {[%emt 0:00:00]} 46. Bd5 {[%emt 0:00:00]} Ra1+ {[%emt 0:00:00]} 47. Kb2 {[%emt 0:00:00]} Rd1 {[%emt 0:00:00]} 48. Rd8+ {[%emt 0:00:00]} Kg7 {[%emt 0:00:00]} 49. Rg8+ {[%emt 0:00:00]} Kf6 {[%emt 0:00:00]} 50. c4 {[%emt 0:00:00]} Rd2+ {[%emt 0:00:00]} 51. Kc1 {[%emt 0:00:00]} Ra2 {[%emt 0:00:00]} 52. Rh8 {[%emt 0:00:00]} Ke5 {[%emt 0:00:00]} 53. Rxh7 {[%emt 0:00:00]} Kd4 {[%emt 0:00:00]} 54. Rb7 {[%emt 0:00:00]} Kc3 {[%emt 0:00:00]} 55. Kb1 {[%emt 0:00:00]} Re2 {[%emt 0:00:42]} 56. Rb5 {[%emt 0:00:00]} Nd2+ {[%emt 0:00:27]} 57. Ka2 {[%emt 0:00:00]} Nb3+ {[%emt 0:01:33]} 58. Ka3 {[%emt 0:00:00]} Nc1 {[%emt 0:00:17]} 0-1

[Event "KAZ Cup Women 2019"]
[Site "Almaty"]
[Date "2019.12.18"]
[Round "8.4"]
[White "Khomeriki, Nino"]
[Black "Ankudinova, Yelena"]
[Result "1-0"]
[ECO "D26"]
[WhiteElo "2355"]
[BlackElo "2093"]
[Annotator "ChessBase"]
[PlyCount "91"]
[EventDate "2019.12.12"]
[EventType "tourn"]
[EventCountry "KAZ"]
[SourceTitle "playchess.com"]
[Source "ChessBase"]
[SourceQuality "1"]
[TimeControl "40/5400+30:1800+30"]

1. d4 {[%emt 0:00:55]} d5 {[%emt 0:00:04]} 2. c4 {[%emt 0:00:16]} dxc4 {[%emt 0:00:23]} 3. Nf3 {[%emt 0:00:06]} Nf6 {[%emt 0:00:11]} 4. e3 {[%emt 0:00:13]} e6 {[%emt 0:00:34]} 5. Bxc4 {[%emt 0:00:10]} a6 {[%emt 0:00:06]} 6. O-O c5 {[%emt 0:01:32]} 7. b3 {[%emt 0:03:15]} Nc6 {[%emt 0:03:45]} 8. Bb2 {[%emt 0:00:26]} cxd4 {[%emt 0:07:32]} 9. Nxd4 {[%emt 0:00:54]} Nxd4 {[%emt 0:02:38]} 10. Bxd4 {[%emt 0:00:22]} Bd6 {[%emt 0:03:23]} 11. Be2 {[%emt 0:03:42]} O-O {[%emt 0:08:21]} 12. Nd2 {[%emt 0:22:12]} e5 13. Bb2 Qe7 {[%emt 0:03:56]} 14. Nc4 {[%emt 0:01:27]} Rd8 {[%emt 0:04:05]} 15. Nxd6 {[%emt 0:00:59]} Rxd6 {[%emt 0:00:13]} 16. Qe1 {[%emt 0:02:33]} Rc6 {[%emt 0:03:36]} 17. Rc1 {[%emt 0:06:20]} Bd7 {[%emt 0:10:43]} 18. Qa5 {[%emt 0:02:59]} Re8 {[%emt 0:00:47]} 19. f3 {[%emt 0:13:01]} Rxc1 {[%emt 0:08:31]} 20. Rxc1 {[%emt 0:00:26]} Bc6 {[%emt 0:00:25]} 21. Qc5 {[%emt 0:07:25]} Qxc5 {[%emt 0:04:01]} 22. Rxc5 {[%emt 0:00:06]} Nd7 {[%emt 0:00:08]} 23. Rc1 {[%emt 0:01:09]} g6 {[%emt 0:18:52]} 24. Kf2 {[%emt 0:00:45]} f6 {[%emt 0:00:16]} 25. Bxa6 {[%emt 0:00:25]} Ra8 {[%emt 0:07:03]} 26. Bc4+ {[%emt 0:00:11]} Kf8 {[%emt 0:00:07]} 27. a4 {[%emt 0:00:41]} Nb6 {[%emt 0:01:13]} 28. Be2 {[%emt 0:01:44]} Ke7 {[%emt 0:01:59]} 29. e4 {[%emt 0:00:38]} Ke6 {[%emt 0:01:56]} 30. Ke3 {[%emt 0:00:55]} f5 {[%emt 0:00:25]} 31. g3 {[%emt 0:00:14]} fxe4 {[%emt 0:01:33]} 32. fxe4 {[%emt 0:00:06]} h5 {[%emt 0:00:16]} 33. h4 {[%emt 0:02:40]} Nd7 {[%emt 0:03:13]} 34. Bc4+ {[%emt 0:01:45]} Kd6 {[%emt 0:01:05]} 35. Rd1+ {[%emt 0:04:41]} Kc7 {[%emt 0:00:16]} 36. Bf7 {[%emt 0:03:27]} Rf8 {[%emt 0:00:49]} 37. Bxg6 {[%emt 0:00:36]} Rg8 {[%emt 0:00:08]} 38. Bxh5 {[%emt 0:00:15]} Rxg3+ {[%emt 0:00:07]} 39. Bf3 {[%emt 0:00:07]} Rh3 {[%emt 0:01:48]} 40. h5 {[%emt 0:00:54]} Bxe4 {[%emt 0:01:19]} 41. Rxd7+ {[%emt 0:31:57]} Kxd7 {[%emt 0:30:43]} 42. Kxe4 {[%emt 0:00:04]} Rh4+ {[%emt 0:00:39]} 43. Kxe5 {[%emt 0:00:09]} Kc7 {[%emt 0:00:00]} 44. Kf5 {[%emt 0:00:00]} Rb4 {[%emt 0:00:00]} 45. Bd1 {[%emt 0:00:00]} Rh4 {[%emt 0:00:00]} 46. Bg7 {[%emt 0:00:00]} 1-0

[Event "KAZ Cup Women 2019"]
[Site "Almaty"]
[Date "2019.12.18"]
[Round "8.5"]
[White "Balabayeva, Xeniya"]
[Black "Kim, Kristina"]
[Result "1-0"]
[ECO "B06"]
[WhiteElo "2119"]
[BlackElo "1975"]
[Annotator "RC"]
[PlyCount "99"]
[EventDate "2019.12.12"]
[EventType "tourn"]
[EventCountry "KAZ"]
[SourceTitle "playchess.com"]
[Source "ChessBase"]
[SourceQuality "1"]
[TimeControl "40/5400+30:1800+30"]

1. e4 {[%emt 0:00:00]} g6 {[%emt 0:04:02]} 2. d4 {[%emt 0:00:00]} Bg7 {[%emt 0:00:05]} 3. Nc3 {[%emt 0:00:00]} c6 {[%emt 0:00:06]} 4. h3 {[%emt 0:00:00]} d5 {[%emt 0:06:57]} 5. Nf3 {[%emt 0:00:09]} Nh6 {[%emt 0:04:01]} 6. Bf4 {[%emt 0:02:30]} f6 {[%emt 0:02:57]} 7. exd5 {[%emt 0:06:52]} cxd5 {[%emt 0:00:09]} 8. Nb5 {[%emt 0:00:05]} Na6 {[%emt 0:03:24]} 9. c4 {[%emt 0:12:20]} Nf7 {[%emt 0:04:58]} 10. cxd5 {[%emt 0:08:28]} Qxd5 {[%emt 0:02:17]} 11. Nc3 {[%emt 0:00:56]} Qe6+ {[%emt 0:00:34]} 12. Be2 {[%emt 0:00:15]} O-O {[%emt 0:06:52]} 13. O-O {[%emt 0:02:16]} Qd7 {[%emt 0:12:46]} 14. Re1 {[%emt 0:12:20]} Nc7 {[%emt 0:04:47]} 15. Bc4 {[%emt 0:07:05]} Kh8 {[%emt 0:19:26]} 16. Qe2 {[%emt 0:12:13]} Nd6 {[%emt 0:03:33]} 17. Qxe7 {[%emt 0:07:41]} Nxc4 {[%emt 0:01:39]} 18. Bxc7 {[%emt 0:01:14]} Qxe7 {[%emt 0:03:13]} 19. Rxe7 {[%emt 0:00:07]} Nxb2 {[%emt 0:01:22]} 20. Rb1 {[%emt 0:02:54]} Nc4 {[%emt 0:06:16]} 21. Rb4 {[%emt 0:00:25]} Nb6 {[%emt 0:04:00]} 22. Bxb6 {[%emt 0:00:41]} axb6 {[%emt 0:00:06]} 23. Rc4 {[%emt 0:00:09]} Rg8 {[%emt 0:03:22]} 24. Rcc7 {[%emt 0:01:37]} g5 {[%emt 0:00:42]} 25. Nd5 {[%emt 0:01:52]} Bf5 {[%emt 0:00:19]} 26. g4 {[%emt 0:12:14]} Bg6 {[%emt 0:01:01]} 27. h4 {[%emt 0:00:29]} h6 {[%emt 0:00:55]} 28. h5 {[%emt 0:00:35]} Bb1 {[%emt 0:01:05]} 29. Nd2 {[%emt 0:01:45]} Bd3 {[%emt 0:01:35]} 30. Ne4 {[%emt 0:03:04]} Bxe4 {[%emt 0:01:06]} 31. Rxe4 {[%emt 0:00:06]} Rgc8 {[%emt 0:01:20]} 32. Rxb7 {[%emt 0:00:49]} Rcb8 {[%emt 0:00:28]} 33. Rxb8+ {[%emt 0:01:05]} Rxb8 {[%emt 0:00:05]} 34. Ne7 {[%emt 0:00:05]} Ra8 {[%emt 0:01:00]} 35. Nf5 {[%emt 0:00:10]} Kg8 {[%emt 0:00:27]} 36. Re6 {[%emt 0:01:09]} b5 {[%emt 0:00:22]} 37. Rb6 {[%emt 0:00:08]} Bf8 {[%emt 0:00:39]} 38. Rxf6 {[%emt 0:01:59]} Kh7 {[%emt 0:00:25]} 39. Rb6 {[%emt 0:00:48]} b4 {[%emt 0:00:15]} 40. d5 {[%emt 0:01:03]} Rxa2 {[%emt 0:00:49]} 41. d6 {[%emt 0:30:36]} Rd2 {[%emt 0:30:29]} 42. Kf1 {[%emt 0:01:07]} b3 {[%emt 0:00:00]} 43. Rxb3 {[%emt 0:00:00]} Bxd6 {[%emt 0:00:00]} 44. Rb7+ {[%emt 0:00:00]} Kg8 {[%emt 0:00:00]} 45. Nxh6+ {[%emt 0:00:00]} Kf8 {[%emt 0:00:00]} 46. Rf7+ {[%emt 0:00:00]} Ke8 {[%emt 0:00:00]} 47. Rf5 {[%emt 0:00:00]} Be7 {[%emt 0:00:00]} 48. Nf7 {[%emt 0:00:00]} Rd1+ {[%emt 0:00:00]} 49. Ke2 {[%emt 0:00:00]} Rg1 {[%emt 0:00:00]} 50. Kf3 {[%emt 0:00:00]} 1-0

[Event "KAZ Cup Women 2019"]
[Site "Almaty"]
[Date "2019.12.19"]
[Round "9.1"]
[White "Kim, Kristina"]
[Black "Dauletova, Gulmira"]
[Result "1-0"]
[ECO "A45"]
[WhiteElo "1975"]
[BlackElo "2250"]
[Annotator "ChessBase"]
[PlyCount "137"]
[EventDate "2019.12.12"]
[EventType "tourn"]
[EventCountry "KAZ"]
[SourceTitle "playchess.com"]
[Source "ChessBase"]
[SourceQuality "1"]
[TimeControl "40/5400+30:1800+30"]

1. d4 {[%emt 0:01:50]} Nf6 {[%emt 0:00:19]} 2. Bf4 {[%emt 0:00:15]} e6 {[%emt 0:02:35]} 3. e3 {[%emt 0:00:10]} b6 {[%emt 0:01:00]} 4. Nf3 {[%emt 0:00:42]} Bb7 {[%emt 0:00:12]} 5. c4 {[%emt 0:00:24]} d6 {[%emt 0:05:01]} 6. Nc3 {[%emt 0:00:50]} Be7 {[%emt 0:07:17]} 7. Qc2 {[%emt 0:03:27]} c5 8. Bg3 {[%emt 0:04:58]} cxd4 {[%emt 0:09:21]} 9. Nxd4 {[%emt 0:00:45]} O-O {[%emt 0:00:29]} 10. Rd1 {[%emt 0:01:09]} a6 11. f3 Nbd7 {[%emt 0:03:26]} 12. h4 {[%emt 0:08:50]} Rc8 {[%emt 0:05:11]} 13. h5 {[%emt 0:15:10]} d5 14. Qb3 Re8 {[%emt 0:13:48]} 15. a3 {[%emt 0:06:08]} Bc5 {[%emt 0:11:22]} 16. cxd5 {[%emt 0:03:25]} exd5 {[%emt 0:00:27]} 17. Bf4 {[%emt 0:04:06]} b5 {[%emt 0:13:31]} 18. g4 {[%emt 0:03:25]} h6 {[%emt 0:05:41]} 19. Kf2 {[%emt 0:00:51]} Qb6 {[%emt 0:01:16]} 20. g5 {[%emt 0:04:35]} hxg5 {[%emt 0:00:31]} 21. Bxg5 {[%emt 0:00:05]} Re5 {[%emt 0:04:12]} 22. Bf4 {[%emt 0:01:43]} Rxh5 {[%emt 0:00:49]} 23. Rxh5 {[%emt 0:00:09]} Nxh5 {[%emt 0:00:01]} 24. Nxd5 {[%emt 0:00:10]} Qd8 {[%emt 0:00:51]} 25. Nf5 {[%emt 0:04:17]} Bc6 {[%emt 0:07:05]} 26. Bh2 {[%emt 0:10:56]} Nhf6 {[%emt 0:03:58]} 27. Nf4 {[%emt 0:06:24]} Qe8 {[%emt 0:01:50]} 28. Be2 Ne5 {[%emt 0:02:52]} 29. Rg1 {[%emt 0:04:00]} Neg4+ 30. Rxg4 {[%emt 0:03:16]} Nxg4+ {[%emt 0:00:29]} 31. fxg4 {[%emt 0:00:14]} Qe4 32. Qc3 {[%emt 0:01:28]} Bf8 {[%emt 0:00:34]} 33. Qd4 {[%emt 0:01:28]} Qh1 {[%emt 0:00:14]} 34. Bg3 Re8 {[%emt 0:01:51]} 35. Nh5 {[%emt 0:04:13]} Qg2+ {[%emt 0:00:03]} 36. Ke1 Qh1+ {[%emt 0:00:49]} 37. Kd2 {[%emt 0:00:34]} Qd5 {[%emt 0:00:07]} 38. Qxd5 {[%emt 0:03:28]} Bxd5 {[%emt 0:00:00]} 39. Nf4 {[%emt 0:00:39]} Be4 {[%emt 0:00:06]} 40. Nd4 Bc5 {[%emt 0:01:50]} 41. Bd3 {[%emt 0:31:29]} Bb7 {[%emt 0:01:13]} 42. b4 Bf8 {[%emt 0:03:21]} 43. Nfe2 {[%emt 0:00:00]} g6 44. g5 {[%emt 0:00:00]} Bg7 {[%emt 0:06:46]} 45. Bf4 {[%emt 0:00:00]} Be5 {[%emt 0:02:13]} 46. Nc3 {[%emt 0:00:00]} Bg7 {[%emt 0:05:51]} 47. Nb3 {[%emt 0:00:00]} Bf8 {[%emt 0:03:10]} 48. Nc5 Bxc5 {[%emt 0:03:39]} 49. bxc5 {[%emt 0:00:00]} Kg7 {[%emt 0:01:25]} 50. e4 f6 51. gxf6+ {[%emt 0:00:00]} Kxf6 {[%emt 0:00:31]} 52. Nd5+ {[%emt 0:00:00]} Kf7 {[%emt 0:00:12]} 53. Kc3 {[%emt 0:00:00]} Rh8 {[%emt 0:00:19]} 54. Kd4 Ke6 55. Be2 {[%emt 0:00:00]} Rh1 {[%emt 0:08:50]} 56. Bg4+ {[%emt 0:00:00]} Kf7 57. Bd7 Ra1 {[%emt 0:01:02]} 58. c6 {[%emt 0:00:00]} Bxc6 {[%emt 0:00:03]} 59. Bxc6 Rxa3 60. Bd7 {[%emt 0:00:00]} Ra4+ {[%emt 0:00:20]} 61. Kd3 {[%emt 0:00:00]} Ra3+ 62. Ke2 Ra2+ {[%emt 0:01:30]} 63. Kf3 {[%emt 0:00:22]} Ra3+ {[%emt 0:00:18]} 64. Be3 {[%emt 0:00:28]} b4 65. e5 {[%emt 0:02:15]} b3 {[%emt 0:01:38]} 66. e6+ {[%emt 0:00:26]} Kg7 {[%emt 0:00:02]} 67. Bd4+ {[%emt 0:02:05]} Kh6 {[%emt 0:00:02]} 68. Bb2 {[%emt 0:00:12]} Ra2 {[%emt 0:00:37]} 69. Bc1+ {[%emt 0:00:18]} 1-0